[Event "Titled Tuesday Blitz May 03 Late 2022"]
[White "Remolar Gallen, Jose"]
[Black "Stevens, Christian"]
[WhiteFideId "2215187"]
[BlackFideId "2604450"]
[WhiteElo "2205"]
[BlackElo "2514"]
[Result "0-1"]
[Round "10"]
[TimeControl "180+1"]
[Date "2022.05.03"]
[WhiteClock "0:00:04"]
[BlackClock "0:00:02"]

1. d4 {[%clk 0:03:00]}  Nf6 {[%clk 0:02:49]} 2. c4 {[%clk 0:02:59]}  e6 {[%clk 0:02:48]} 3. Nc3 {[%clk 0:02:57]}  d5 {[%clk 0:02:48]} 4. Bg5 {[%clk 0:02:54]}  dxc4 {[%clk 0:02:46]} 5. e4 {[%clk 0:02:51]}  h6 {[%clk 0:02:44]} 6. Bxf6 {[%clk 0:02:45]}  Qxf6 {[%clk 0:02:43]} 7. Bxc4 {[%clk 0:02:46]}  a6 {[%clk 0:02:38]} 8. Nf3 {[%clk 0:02:38]}  c5 {[%clk 0:02:38]} 9. d5 {[%clk 0:02:30]}  b5 {[%clk 0:02:20]} 10. e5 {[%clk 0:02:06]}  Qd8 {[%clk 0:02:03]} 11. Be2 {[%clk 0:01:42]}  b4 {[%clk 0:01:43]} 12. dxe6 {[%clk 0:01:19]}  bxc3 {[%clk 0:01:37]} 13. Qa4+ {[%clk 0:01:16]}  Ke7 {[%clk 0:01:35]} 14. Rd1 {[%clk 0:01:11]}  Qb6 {[%clk 0:01:07]} 15. Qh4+ {[%clk 0:00:59]}  f6 {[%clk 0:00:41]} 16. exf6+ {[%clk 0:00:42]}  gxf6 {[%clk 0:00:40]} 17. Ne5 {[%clk 0:00:41]}  Rg8 {[%clk 0:00:36]} 18. Qh5 {[%clk 0:00:18]}  Bxe6 {[%clk 0:00:27]} 19. Ng6+ {[%clk 0:00:18]}  Rxg6 {[%clk 0:00:23]} 20. Qxg6 {[%clk 0:00:19]}  Nd7 {[%clk 0:00:14]} 21. Bh5 {[%clk 0:00:18]}  Ne5 {[%clk 0:00:13]} 22. Qh7+ {[%clk 0:00:18]}  Bf7 {[%clk 0:00:12]} 23. bxc3 {[%clk 0:00:18]}  Qb5 {[%clk 0:00:10]} 24. Be2 {[%clk 0:00:14]}  c4 {[%clk 0:00:07]} 25. O-O {[%clk 0:00:14]}  Qc5 {[%clk 0:00:05]} 26. Rfe1 {[%clk 0:00:15]}  Rd8 {[%clk 0:00:04]} 27. Rxd8 {[%clk 0:00:14]}  Kxd8 {[%clk 0:00:05]} 28. Qh8 {[%clk 0:00:13]}  Kc7 {[%clk 0:00:04]} 29. Qxf6 {[%clk 0:00:13]}  Bd6 {[%clk 0:00:02]} 30. Bf3 {[%clk 0:00:12]}  Nxf3+ {[%clk 0:00:01]} 31. Qxf3 {[%clk 0:00:11]}  Bd5 {[%clk 0:00:02]} 32. Qh5 {[%clk 0:00:10]}  Kc6 {[%clk 0:00:02]} 33. Qxh6 {[%clk 0:00:10]}  Qa3 {[%clk 0:00:02]} 34. Qg7 {[%clk 0:00:08]}  Qxa2 {[%clk 0:00:02]} 35. Qd4 {[%clk 0:00:08]}  Qc2 {[%clk 0:00:02]} 36. Rd1 {[%clk 0:00:07]}  Qe4 {[%clk 0:00:02]} 37. Qxe4 {[%clk 0:00:07]}  Bxe4 {[%clk 0:00:03]} 38. f3 {[%clk 0:00:07]}  Bd3 {[%clk 0:00:03]} 39. h4 {[%clk 0:00:07]}  a5 {[%clk 0:00:03]} 40. Kf2 {[%clk 0:00:07]}  Be5 {[%clk 0:00:03]} 41. h5 {[%clk 0:00:08]}  Bxc3 {[%clk 0:00:03]} 42. g4 {[%clk 0:00:08]}  a4 {[%clk 0:00:03]} 43. g5 {[%clk 0:00:09]}  a3 {[%clk 0:00:03]} 44. h6 {[%clk 0:00:08]}  a2 {[%clk 0:00:03]} 45. Rh1 {[%clk 0:00:06]}  a1=Q {[%clk 0:00:03]} 46. Rxa1 {[%clk 0:00:07]}  Bxa1 {[%clk 0:00:03]} 47. f4 {[%clk 0:00:08]}  Kd5 {[%clk 0:00:02]} 48. Kf3 {[%clk 0:00:08]}  Bf5 {[%clk 0:00:02]} 49. Kg3 {[%clk 0:00:08]}  Bh8 {[%clk 0:00:02]} 50. Kh4 {[%clk 0:00:09]}  Ke6 {[%clk 0:00:02]} 51. Kh5 {[%clk 0:00:09]}  Kf7 {[%clk 0:00:03]} 52. g6+ {[%clk 0:00:07]}  Bxg6+ {[%clk 0:00:03]} 53. Kg5 {[%clk 0:00:08]}  c3 {[%clk 0:00:03]} 54. f5 {[%clk 0:00:07]}  Bf6+ {[%clk 0:00:03]} 55. Kf4 {[%clk 0:00:06]}  Bh7 {[%clk 0:00:03]} 56. Ke3 {[%clk 0:00:07]}  c2 {[%clk 0:00:03]} 57. Kd2 {[%clk 0:00:07]}  Bxf5 {[%clk 0:00:04]} 58. Kc1 {[%clk 0:00:06]}  Bg5+ {[%clk 0:00:04]} 59. Kb2 {[%clk 0:00:06]}  c1=Q+ {[%clk 0:00:04]} 60. Kb3 {[%clk 0:00:07]}  Bd2 {[%clk 0:00:04]} 61. Ka4 {[%clk 0:00:07]}  Qc2+ {[%clk 0:00:04]} 62. Kb5 {[%clk 0:00:06]}  Bd3+ {[%clk 0:00:03]} 63. Kb6 {[%clk 0:00:06]}  Be3+ {[%clk 0:00:03]} 64. Ka5 {[%clk 0:00:05]}  Qc3+ {[%clk 0:00:02]} 65. Ka4 {[%clk 0:00:04]}  Qb2 {[%clk 0:00:02]} 66. h7 {[%clk 0:00:04]}  Bd2 {[%clk 0:00:02]} 67. h8=Q {[%clk 0:00:04]}  Qb4# {[%clk 0:00:02]} 0-1


[Site "https://www.chess.com"]

[Event "Titled Tuesday Blitz May 03 Late 2022"]
[White "Richter, Nils"]
[Black "Thybo, Jesper Sondergaard"]
[WhiteFideId "12990809"]
[BlackFideId "1438832"]
[WhiteElo "2243"]
[BlackElo "2316"]
[Result "0-1"]
[Round "10"]
[TimeControl "180+1"]
[Date "2022.05.03"]
[WhiteClock "0:00:16"]
[BlackClock "0:00:06"]

1. Nf3 {[%clk 0:03:00]}  b6 {[%clk 0:02:59]} 2. e4 {[%clk 0:02:59]}  Bb7 {[%clk 0:02:59]} 3. Nc3 {[%clk 0:03:00]}  Nf6 {[%clk 0:02:56]} 4. e5 {[%clk 0:02:57]}  Ne4 {[%clk 0:02:55]} 5. Bd3 {[%clk 0:02:56]}  Nxc3 {[%clk 0:02:50]} 6. dxc3 {[%clk 0:02:57]}  e6 {[%clk 0:02:48]} 7. Bf4 {[%clk 0:02:56]}  Be7 {[%clk 0:02:47]} 8. Qd2 {[%clk 0:02:56]}  Bxf3 {[%clk 0:02:39]} 9. gxf3 {[%clk 0:02:56]}  d5 {[%clk 0:02:39]} 10. O-O-O {[%clk 0:02:53]}  c6 {[%clk 0:02:28]} 11. Rhg1 {[%clk 0:02:50]}  g6 {[%clk 0:02:24]} 12. Qe2 {[%clk 0:02:45]}  Nd7 {[%clk 0:02:20]} 13. c4 {[%clk 0:02:44]}  Nc5 {[%clk 0:02:16]} 14. cxd5 {[%clk 0:02:42]}  Nxd3+ {[%clk 0:02:16]} 15. Rxd3 {[%clk 0:02:36]}  cxd5 {[%clk 0:02:15]} 16. Kb1 {[%clk 0:02:27]}  Rc8 {[%clk 0:02:05]} 17. Bh6 {[%clk 0:02:25]}  Rc4 {[%clk 0:02:01]} 18. Rb3 {[%clk 0:01:58]}  Qc7 {[%clk 0:01:48]} 19. Bg7 {[%clk 0:01:54]}  Rg8 {[%clk 0:01:46]} 20. Bh6 {[%clk 0:01:54]}  Kd7 {[%clk 0:01:34]} 21. f4 {[%clk 0:01:45]}  Rc8 {[%clk 0:01:33]} 22. Rc1 {[%clk 0:01:35]}  Ke8 {[%clk 0:01:26]} 23. a3 {[%clk 0:01:32]}  a5 {[%clk 0:01:22]} 24. Rg3 {[%clk 0:01:29]}  b5 {[%clk 0:01:08]} 25. f5 {[%clk 0:01:28]}  exf5 {[%clk 0:01:05]} 26. e6 {[%clk 0:01:27]}  f6 {[%clk 0:00:39]} 27. b3 {[%clk 0:01:23]}  Re4 {[%clk 0:00:38]} 28. Qxb5+ {[%clk 0:01:23]}  Qc6 {[%clk 0:00:38]} 29. Qxa5 {[%clk 0:01:12]}  Rxe6 {[%clk 0:00:35]} 30. Bd2 {[%clk 0:01:05]}  Ra8 {[%clk 0:00:33]} 31. Qc3 {[%clk 0:01:02]}  Qxc3 {[%clk 0:00:31]} 32. Bxc3 {[%clk 0:01:03]}  Bxa3 {[%clk 0:00:30]} 33. Bb2 {[%clk 0:01:02]}  Bxb2 {[%clk 0:00:24]} 34. Kxb2 {[%clk 0:01:03]}  Re2 {[%clk 0:00:24]} 35. Rd1 {[%clk 0:00:52]}  Rc8 {[%clk 0:00:14]} 36. Re3+ {[%clk 0:00:51]}  Rxe3 {[%clk 0:00:14]} 37. fxe3 {[%clk 0:00:52]}  Rc5 {[%clk 0:00:12]} 38. b4 {[%clk 0:00:51]}  Rc4 {[%clk 0:00:13]} 39. Kb3 {[%clk 0:00:51]}  Re4 {[%clk 0:00:13]} 40. Rxd5 {[%clk 0:00:51]}  Rxe3+ {[%clk 0:00:13]} 41. c3 {[%clk 0:00:50]}  f4 {[%clk 0:00:14]} 42. b5 {[%clk 0:00:48]}  f3 {[%clk 0:00:13]} 43. Rd4 {[%clk 0:00:33]}  g5 {[%clk 0:00:11]} 44. Rd5 {[%clk 0:00:28]}  Re5 {[%clk 0:00:05]} 45. Rd6 {[%clk 0:00:20]}  Ke7 {[%clk 0:00:04]} 46. Rd2 {[%clk 0:00:17]}  Rxb5+ {[%clk 0:00:04]} 47. Kc4 {[%clk 0:00:18]}  Rf5 {[%clk 0:00:05]} 48. Rf2 {[%clk 0:00:18]}  g4 {[%clk 0:00:06]} 49. Kd4 {[%clk 0:00:19]}  h5 {[%clk 0:00:06]} 50. c4 {[%clk 0:00:17]}  Rf4+ {[%clk 0:00:05]} 51. Kd5 {[%clk 0:00:17]}  h4 {[%clk 0:00:04]} 52. c5 {[%clk 0:00:16]}  g3 {[%clk 0:00:04]} 53. hxg3 {[%clk 0:00:17]}  hxg3 {[%clk 0:00:05]} 54. Ra2 {[%clk 0:00:18]}  f2 {[%clk 0:00:05]} 55. Ra7+ {[%clk 0:00:18]}  Kf8 {[%clk 0:00:05]} 56. Ra8+ {[%clk 0:00:15]}  Kg7 {[%clk 0:00:05]} 57. Ra7+ {[%clk 0:00:16]}  Kg6 {[%clk 0:00:06]} 0-1


[Site "https://www.chess.com"]

[Event "Titled Tuesday Blitz May 03 Late 2022"]
[White "Romanchuk, Viktor"]
[Black "D`Arruda, Ricardo D."]
[WhiteFideId "14109271"]
[BlackFideId "100692"]
[WhiteElo "2242"]
[BlackElo "2443"]
[Result "1/2-1/2"]
[Round "10"]
[TimeControl "180+1"]
[Date "2022.05.03"]
[WhiteClock "0:00:30"]
[BlackClock "0:00:39"]

1. d4 {[%clk 0:03:00]}  Nf6 {[%clk 0:02:57]} 2. c4 {[%clk 0:03:00]}  e5 {[%clk 0:02:57]} 3. dxe5 {[%clk 0:03:00]}  Ne4 {[%clk 0:02:57]} 4. Nd2 {[%clk 0:02:59]}  Nc5 {[%clk 0:02:56]} 5. Nb3 {[%clk 0:02:53]}  Nxb3 {[%clk 0:02:47]} 6. axb3 {[%clk 0:02:52]}  Nc6 {[%clk 0:02:48]} 7. Nf3 {[%clk 0:02:52]}  Bb4+ {[%clk 0:02:48]} 8. Bd2 {[%clk 0:02:51]}  Qe7 {[%clk 0:02:48]} 9. e3 {[%clk 0:02:43]}  Nxe5 {[%clk 0:02:48]} 10. Be2 {[%clk 0:02:37]}  Bxd2+ {[%clk 0:02:44]} 11. Qxd2 {[%clk 0:02:36]}  d6 {[%clk 0:02:44]} 12. Nxe5 {[%clk 0:02:34]}  dxe5 {[%clk 0:02:44]} 13. Bf3 {[%clk 0:02:34]}  c6 {[%clk 0:02:41]} 14. O-O {[%clk 0:02:32]}  O-O {[%clk 0:02:41]} 15. Rfd1 {[%clk 0:02:32]}  Be6 {[%clk 0:02:40]} 16. Qc3 {[%clk 0:02:23]}  f6 {[%clk 0:02:38]} 17. b4 {[%clk 0:02:23]}  a6 {[%clk 0:02:32]} 18. c5 {[%clk 0:02:19]}  Rad8 {[%clk 0:02:26]} 19. h3 {[%clk 0:02:17]}  Rxd1+ {[%clk 0:02:14]} 20. Rxd1 {[%clk 0:02:14]}  Rd8 {[%clk 0:02:14]} 21. Rd2 {[%clk 0:02:11]}  Rd7 {[%clk 0:01:54]} 22. Qc1 {[%clk 0:02:00]}  Qd8 {[%clk 0:01:54]} 23. Rxd7 {[%clk 0:02:00]}  Qxd7 {[%clk 0:01:55]} 24. Qd1 {[%clk 0:01:59]}  Qxd1+ {[%clk 0:01:35]} 25. Bxd1 {[%clk 0:02:00]}  Kf7 {[%clk 0:01:30]} 26. Kf1 {[%clk 0:01:54]}  Bc4+ {[%clk 0:01:29]} 27. Ke1 {[%clk 0:01:54]}  g5 {[%clk 0:01:26]} 28. Bg4 {[%clk 0:01:50]}  Be6 {[%clk 0:01:25]} 29. Bxe6+ {[%clk 0:01:44]}  Kxe6 {[%clk 0:01:26]} 30. e4 {[%clk 0:01:45]}  h5 {[%clk 0:01:04]} 31. g4 {[%clk 0:01:42]}  h4 {[%clk 0:01:02]} 32. Kd2 {[%clk 0:01:41]}  Kd7 {[%clk 0:01:03]} 33. Kc3 {[%clk 0:01:41]}  Kc7 {[%clk 0:01:03]} 34. Kb3 {[%clk 0:01:40]}  Kb8 {[%clk 0:00:42]} 35. Ka4 {[%clk 0:01:37]}  Ka8 {[%clk 0:00:41]} 36. Ka5 {[%clk 0:01:23]}  Ka7 {[%clk 0:00:40]} 37. f3 {[%clk 0:01:03]}  Ka8 {[%clk 0:00:39]} 38. Kb6 {[%clk 0:01:01]}  Kb8 {[%clk 0:00:39]} 39. b3 {[%clk 0:00:48]}  Kc8 {[%clk 0:00:38]} 40. Ka7 {[%clk 0:00:30]}  Kc7 {[%clk 0:00:38]} 41. Ka8 {[%clk 0:00:30]}  Kc8 {[%clk 0:00:38]} 42. Ka7 {[%clk 0:00:30]}  Kc7 {[%clk 0:00:39]} 43. Ka8 {[%clk 0:00:30]}  Kc8 {[%clk 0:00:39]} 44. Ka7 {[%clk 0:00:30]} 1/2-1/2


[Site "https://www.chess.com"]

[Event "Titled Tuesday Blitz May 03 Late 2022"]
[White "Sargsyan, Anna M."]
[Black "Sarana, Alexey"]
[WhiteFideId "13308130"]
[BlackFideId "24133795"]
[WhiteElo "2271"]
[BlackElo "2666"]
[Result "0-1"]
[Round "10"]
[TimeControl "180+1"]
[Date "2022.05.03"]
[WhiteClock "0:00:00"]
[BlackClock "0:00:44"]

1. d4 {[%clk 0:03:00]}  Nf6 {[%clk 0:02:59]} 2. c4 {[%clk 0:03:01]}  e6 {[%clk 0:02:59]} 3. Nf3 {[%clk 0:03:01]}  d5 {[%clk 0:02:59]} 4. Nc3 {[%clk 0:03:02]}  h6 {[%clk 0:02:54]} 5. Bf4 {[%clk 0:02:49]}  Bd6 {[%clk 0:02:52]} 6. Ne5 {[%clk 0:02:38]}  Nbd7 {[%clk 0:02:46]} 7. e3 {[%clk 0:02:33]}  Qe7 {[%clk 0:02:45]} 8. Be2 {[%clk 0:01:58]}  c6 {[%clk 0:02:30]} 9. O-O {[%clk 0:01:55]}  O-O {[%clk 0:02:30]} 10. Bg3 {[%clk 0:01:55]}  Bb8 {[%clk 0:02:21]} 11. f4 {[%clk 0:01:53]}  Ne8 {[%clk 0:02:16]} 12. Qc2 {[%clk 0:01:44]}  Nd6 {[%clk 0:02:16]} 13. cxd5 {[%clk 0:01:32]}  exd5 {[%clk 0:02:14]} 14. Bd3 {[%clk 0:01:23]}  Nf6 {[%clk 0:02:07]} 15. Bh4 {[%clk 0:01:20]}  Qe6 {[%clk 0:02:07]} 16. f5 {[%clk 0:00:41]}  Qe7 {[%clk 0:02:07]} 17. Ng4 {[%clk 0:00:41]}  Nde8 {[%clk 0:02:07]} 18. e4 {[%clk 0:00:37]}  Qb4 {[%clk 0:01:10]} 19. Nxf6+ {[%clk 0:00:34]}  gxf6 {[%clk 0:01:07]} 20. Qf2 {[%clk 0:00:26]}  Kh7 {[%clk 0:01:07]} 21. Kh1 {[%clk 0:00:25]}  Rg8 {[%clk 0:01:07]} 22. Rae1 {[%clk 0:00:21]}  Rg4 {[%clk 0:01:01]} 23. Bg3 {[%clk 0:00:05]}  Bxg3 {[%clk 0:01:01]} 24. hxg3 {[%clk 0:00:06]}  Nd6 {[%clk 0:00:58]} 25. Qf3 {[%clk 0:00:06]}  Rg5 {[%clk 0:00:55]} 26. e5 {[%clk 0:00:06]}  Ne8 {[%clk 0:00:53]} 27. e6 {[%clk 0:00:06]}  Qf8 {[%clk 0:00:46]} 28. e7 {[%clk 0:00:02]}  Qg7 {[%clk 0:00:46]} 29. Kh2 {[%clk 0:00:01]}  Bd7 {[%clk 0:00:46]} 30. Qf4 {[%clk 0:00:00]}  Rg4 {[%clk 0:00:44]} 0-1


[Site "https://www.chess.com"]

[Event "Titled Tuesday Blitz May 03 Late 2022"]
[White "Seletsky, Grigory"]
[Black "Piliczewski, Bogusz"]
[WhiteFideId "14112191"]
[BlackFideId "1104144"]
[WhiteElo "2492"]
[BlackElo "1896"]
[Result "1-0"]
[Round "10"]
[TimeControl "180+1"]
[Date "2022.05.03"]
[WhiteClock "0:01:57"]
[BlackClock "0:00:01"]

1. e4 {[%clk 0:03:00]}  c6 {[%clk 0:02:53]} 2. d4 {[%clk 0:02:59]}  d5 {[%clk 0:02:53]} 3. e5 {[%clk 0:02:59]}  c5 {[%clk 0:02:53]} 4. dxc5 {[%clk 0:02:56]}  e6 {[%clk 0:02:53]} 5. a3 {[%clk 0:02:55]}  Bxc5 {[%clk 0:02:50]} 6. b4 {[%clk 0:02:55]}  Bb6 {[%clk 0:02:44]} 7. Nf3 {[%clk 0:02:54]}  Nd7 {[%clk 0:02:38]} 8. Bb2 {[%clk 0:02:53]}  Ne7 {[%clk 0:02:36]} 9. Bd3 {[%clk 0:02:53]}  Ng6 {[%clk 0:02:33]} 10. h4 {[%clk 0:02:52]}  Bc7 {[%clk 0:02:32]} 11. Bxg6 {[%clk 0:02:46]}  hxg6 {[%clk 0:02:31]} 12. Nc3 {[%clk 0:02:41]}  Nxe5 {[%clk 0:02:18]} 13. Nb5 {[%clk 0:02:41]}  Nxf3+ {[%clk 0:02:16]} 14. Qxf3 {[%clk 0:02:41]}  Bb8 {[%clk 0:01:47]} 15. Bxg7 {[%clk 0:02:38]}  Rxh4 {[%clk 0:01:44]} 16. O-O-O {[%clk 0:02:37]}  Qg5+ {[%clk 0:01:28]} 17. Kb1 {[%clk 0:02:36]}  Rh5 {[%clk 0:00:49]} 18. Bf6 {[%clk 0:02:31]}  Qf5 {[%clk 0:00:45]} 19. Qxf5 {[%clk 0:02:29]}  exf5 {[%clk 0:00:37]} 20. Rxh5 {[%clk 0:02:25]}  gxh5 {[%clk 0:00:37]} 21. Rh1 {[%clk 0:02:24]}  a6 {[%clk 0:00:32]} 22. Nc3 {[%clk 0:02:21]}  Be6 {[%clk 0:00:30]} 23. Rh4 {[%clk 0:02:21]}  Bd6 {[%clk 0:00:26]} 24. Rxh5 {[%clk 0:02:22]}  Kd7 {[%clk 0:00:24]} 25. Ne2 {[%clk 0:02:19]}  Rg8 {[%clk 0:00:20]} 26. g3 {[%clk 0:02:18]}  Rg6 {[%clk 0:00:20]} 27. Bd4 {[%clk 0:02:13]}  Rg4 {[%clk 0:00:17]} 28. c3 {[%clk 0:02:12]}  Re4 {[%clk 0:00:16]} 29. Nc1 {[%clk 0:02:09]}  Re1 {[%clk 0:00:14]} 30. Kc2 {[%clk 0:02:08]}  Be5 {[%clk 0:00:14]} 31. Nd3 {[%clk 0:02:05]}  Re2+ {[%clk 0:00:03]} 32. Kd1 {[%clk 0:02:05]}  Bxd4 {[%clk 0:00:03]} 33. Kxe2 {[%clk 0:02:04]}  Bxc3 {[%clk 0:00:03]} 34. Nc5+ {[%clk 0:02:01]}  Kc6 {[%clk 0:00:03]} 35. Nxb7 {[%clk 0:02:00]}  Kxb7 {[%clk 0:00:02]} 36. Kd3 {[%clk 0:01:59]}  Bb2 {[%clk 0:00:01]} 37. a4 {[%clk 0:01:57]} 1-0


[Site "https://www.chess.com"]

[Event "Titled Tuesday Blitz May 03 Late 2022"]
[White "Wartiovaara, Oliver"]
[Black "Mirza, Diana"]
[WhiteFideId "513024"]
[BlackFideId "2503999"]
[WhiteElo "1971"]
[BlackElo "1813"]
[Result "1-0"]
[Round "10"]
[TimeControl "180+1"]
[Date "2022.05.03"]
[WhiteClock "0:00:07"]
[BlackClock "0:00:05"]

1. e4 {[%clk 0:03:00]}  e5 {[%clk 0:02:58]} 2. Nf3 {[%clk 0:02:59]}  d6 {[%clk 0:02:58]} 3. d4 {[%clk 0:02:58]}  exd4 {[%clk 0:02:59]} 4. Nxd4 {[%clk 0:02:58]}  Nf6 {[%clk 0:02:59]} 5. Nc3 {[%clk 0:02:58]}  g6 {[%clk 0:02:59]} 6. f3 {[%clk 0:02:44]}  Bg7 {[%clk 0:02:58]} 7. Be3 {[%clk 0:02:45]}  O-O {[%clk 0:02:58]} 8. Qd2 {[%clk 0:02:45]}  Re8 {[%clk 0:02:57]} 9. O-O-O {[%clk 0:02:45]}  d5 {[%clk 0:02:52]} 10. Nb3 {[%clk 0:02:32]}  Qe7 {[%clk 0:02:04]} 11. Nxd5 {[%clk 0:02:14]}  Nxd5 {[%clk 0:02:01]} 12. Qxd5 {[%clk 0:02:15]}  a5 {[%clk 0:01:52]} 13. a4 {[%clk 0:01:48]}  Be6 {[%clk 0:01:46]} 14. Qc5 {[%clk 0:01:46]}  Qf6 {[%clk 0:01:33]} 15. Bd4 {[%clk 0:01:35]}  Qf4+ {[%clk 0:01:26]} 16. Kb1 {[%clk 0:01:23]}  Na6 {[%clk 0:01:15]} 17. Qc3 {[%clk 0:01:13]}  Bf8 {[%clk 0:00:58]} 18. Bxa6 {[%clk 0:00:52]}  Rxa6 {[%clk 0:00:46]} 19. h4 {[%clk 0:00:47]}  Rc6 {[%clk 0:00:45]} 20. Qe3 {[%clk 0:00:45]}  Qxe3 {[%clk 0:00:39]} 21. Bxe3 {[%clk 0:00:46]}  Bxb3 {[%clk 0:00:33]} 22. cxb3 {[%clk 0:00:47]}  Bg7 {[%clk 0:00:31]} 23. h5 {[%clk 0:00:40]}  Be5 {[%clk 0:00:18]} 24. Rd5 {[%clk 0:00:33]}  f6 {[%clk 0:00:11]} 25. h6 {[%clk 0:00:22]}  Kf7 {[%clk 0:00:09]} 26. Rxa5 {[%clk 0:00:18]}  Rd8 {[%clk 0:00:09]} 27. Rd5 {[%clk 0:00:17]}  Rcd6 {[%clk 0:00:09]} 28. Rhd1 {[%clk 0:00:14]}  Rxd5 {[%clk 0:00:09]} 29. Rxd5 {[%clk 0:00:15]}  Rxd5 {[%clk 0:00:09]} 30. exd5 {[%clk 0:00:16]}  g5 {[%clk 0:00:10]} 31. b4 {[%clk 0:00:08]}  Kg6 {[%clk 0:00:10]} 32. a5 {[%clk 0:00:07]}  Kxh6 {[%clk 0:00:10]} 33. b5 {[%clk 0:00:07]}  Kg6 {[%clk 0:00:10]} 34. a6 {[%clk 0:00:07]}  bxa6 {[%clk 0:00:10]} 35. bxa6 {[%clk 0:00:08]}  h5 {[%clk 0:00:10]} 36. a7 {[%clk 0:00:06]}  g4 {[%clk 0:00:09]} 37. fxg4 {[%clk 0:00:06]}  hxg4 {[%clk 0:00:10]} 38. a8=Q {[%clk 0:00:05]}  Kf5 {[%clk 0:00:10]} 39. Qc6 {[%clk 0:00:04]}  Ke4 {[%clk 0:00:10]} 40. Qe6 {[%clk 0:00:05]}  f5 {[%clk 0:00:10]} 41. Bd2 {[%clk 0:00:04]}  f4 {[%clk 0:00:08]} 42. Bc3 {[%clk 0:00:03]}  f3 {[%clk 0:00:07]} 43. Qxe5+ {[%clk 0:00:04]}  Kd3 {[%clk 0:00:07]} 44. gxf3 {[%clk 0:00:05]}  gxf3 {[%clk 0:00:07]} 45. Qf4 {[%clk 0:00:06]}  Ke2 {[%clk 0:00:07]} 46. Bd4 {[%clk 0:00:06]}  c5 {[%clk 0:00:05]} 47. Qe3+ {[%clk 0:00:07]}  Kf1 {[%clk 0:00:05]} 48. Qf2# {[%clk 0:00:07]} 1-0


[Site "https://www.chess.com"]

[Event "Titled Tuesday Blitz May 03 Late 2022"]
[White "Xiong, Jeffery"]
[Black "Tang, Andrew"]
[WhiteFideId "2047640"]
[BlackFideId "2059630"]
[WhiteElo "2727"]
[BlackElo "2584"]
[Result "1-0"]
[Round "10"]
[TimeControl "180+1"]
[Date "2022.05.03"]
[WhiteClock "0:01:30"]
[BlackClock "0:00:01"]

1. d4 {[%clk 0:02:59]}  d5 {[%clk 0:02:58]} 2. c4 {[%clk 0:02:58]}  e6 {[%clk 0:02:57]} 3. Nc3 {[%clk 0:02:59]}  Be7 {[%clk 0:02:57]} 4. Bf4 {[%clk 0:02:59]}  Nf6 {[%clk 0:02:57]} 5. e3 {[%clk 0:03:00]}  O-O {[%clk 0:02:58]} 6. a3 {[%clk 0:03:00]}  b6 {[%clk 0:02:45]} 7. Nb5 {[%clk 0:03:00]}  Na6 {[%clk 0:02:43]} 8. Nf3 {[%clk 0:03:01]}  Bb7 {[%clk 0:02:38]} 9. Nc3 {[%clk 0:02:56]}  c5 {[%clk 0:02:34]} 10. cxd5 {[%clk 0:02:56]}  Nxd5 {[%clk 0:02:34]} 11. Nxd5 {[%clk 0:02:56]}  exd5 {[%clk 0:02:21]} 12. Bd3 {[%clk 0:02:56]}  c4 {[%clk 0:02:20]} 13. Bb1 {[%clk 0:02:52]}  Nc7 {[%clk 0:02:15]} 14. h4 {[%clk 0:02:51]}  f5 {[%clk 0:01:44]} 15. g4 {[%clk 0:02:41]}  Bc8 {[%clk 0:01:26]} 16. gxf5 {[%clk 0:01:54]}  Bxf5 {[%clk 0:01:24]} 17. Bxf5 {[%clk 0:01:55]}  Rxf5 {[%clk 0:01:24]} 18. Qc2 {[%clk 0:01:55]}  Rh5 {[%clk 0:01:12]} 19. O-O-O {[%clk 0:01:47]}  Ne6 {[%clk 0:01:09]} 20. Be5 {[%clk 0:01:47]}  Qf8 {[%clk 0:01:03]} 21. Ng5 {[%clk 0:01:47]}  Bxg5 {[%clk 0:00:53]} 22. hxg5 {[%clk 0:01:48]}  Rxh1 {[%clk 0:00:53]} 23. Rxh1 {[%clk 0:01:49]}  Nxg5 {[%clk 0:00:54]} 24. Rg1 {[%clk 0:01:48]}  Ne6 {[%clk 0:00:48]} 25. e4 {[%clk 0:01:48]}  Qf3 {[%clk 0:00:24]} 26. exd5 {[%clk 0:01:32]}  Qxd5 {[%clk 0:00:25]} 27. f4 {[%clk 0:01:32]}  Kf8 {[%clk 0:00:02]} 28. Qxh7 {[%clk 0:01:31]}  Re8 {[%clk 0:00:01]} 29. Rxg7 {[%clk 0:01:30]} 1-0


[Site "https://www.chess.com"]

[Event "Titled Tuesday Blitz May 03 Late 2022"]
[White "Yanayt, Eugene"]
[Black "Kholin, Aleksandr"]
[WhiteFideId "2020165"]
[BlackFideId "14179385"]
[WhiteElo "2046"]
[BlackElo "2472"]
[Result "0-1"]
[Round "10"]
[TimeControl "180+1"]
[Date "2022.05.03"]
[WhiteClock "0:00:20"]
[BlackClock "0:02:05"]

1. d4 {[%clk 0:03:00]}  d5 {[%clk 0:02:59]} 2. c4 {[%clk 0:03:00]}  e6 {[%clk 0:02:59]} 3. g3 {[%clk 0:02:59]}  Nf6 {[%clk 0:02:59]} 4. Bg2 {[%clk 0:02:59]}  Be7 {[%clk 0:02:58]} 5. Bg5 {[%clk 0:02:58]}  O-O {[%clk 0:02:58]} 6. Nc3 {[%clk 0:02:56]}  dxc4 {[%clk 0:02:57]} 7. e4 {[%clk 0:02:51]}  Nc6 {[%clk 0:02:55]} 8. Nge2 {[%clk 0:02:50]}  h6 {[%clk 0:02:52]} 9. Bxf6 {[%clk 0:02:34]}  Bxf6 {[%clk 0:02:51]} 10. e5 {[%clk 0:02:31]}  Be7 {[%clk 0:02:48]} 11. O-O {[%clk 0:02:11]}  Nb4 {[%clk 0:02:45]} 12. Ne4 {[%clk 0:02:06]}  Nd5 {[%clk 0:02:42]} 13. Qc2 {[%clk 0:01:56]}  b5 {[%clk 0:02:40]} 14. a4 {[%clk 0:01:56]}  c6 {[%clk 0:02:39]} 15. b3 {[%clk 0:01:42]}  cxb3 {[%clk 0:02:30]} 16. Qxc6 {[%clk 0:01:39]}  Bd7 {[%clk 0:02:27]} 17. Qc1 {[%clk 0:01:22]}  Rc8 {[%clk 0:02:27]} 18. Qb1 {[%clk 0:01:16]}  bxa4 {[%clk 0:02:27]} 19. Rc1 {[%clk 0:01:08]}  Qb6 {[%clk 0:02:25]} 20. Qb2 {[%clk 0:00:48]}  a3 {[%clk 0:02:22]} 21. Rxa3 {[%clk 0:00:45]}  Bxa3 {[%clk 0:02:23]} 22. Qxa3 {[%clk 0:00:43]}  Rxc1+ {[%clk 0:02:23]} 23. Qxc1 {[%clk 0:00:41]}  b2 {[%clk 0:02:20]} 24. Qb1 {[%clk 0:00:40]}  Bb5 {[%clk 0:02:17]} 25. Qxb2 {[%clk 0:00:36]}  Bxe2 {[%clk 0:02:16]} 26. Qxe2 {[%clk 0:00:35]}  Qxd4 {[%clk 0:02:11]} 27. g4 {[%clk 0:00:22]}  Qxe5 {[%clk 0:02:06]} 28. g5 {[%clk 0:00:22]}  hxg5 {[%clk 0:02:05]} 29. Qg4 {[%clk 0:00:20]} 0-1


[Site "https://www.chess.com"]